bitfinex/quotes_BTCUSD_20250620
["timestamp","ask_amount","ask_price","bid_price","bid_amount"]
[1750415975942,0.0308552,106210.0,106200.0,1.26882284]
[1750415976528,0.0308552,106210.0,106200.0,1.22962283]
[1750415982691,0.0155552,106210.0,106200.0,0.88962283]
[1750415982900,0.0155552,106210.0,106200.0,1.21146135]
[1750415984358,0.0155552,106210.0,106200.0,1.23033135]
[1750415984906,0.0155552,106210.0,106200.0,0.90849283]
[1750415986588,0.0155552,106210.0,106200.0,1.23033135]
[1750415989585,0.0155552,106210.0,106200.0,1.13690004]
[1750415990463,0.0155552,106210.0,106200.0,1.23065037]
[1750415990866,0.0155552,106210.0,106200.0,1.23073221]
[1750415996319,0.0313552,106210.0,106200.0,0.41546333]
[1750415996322,0.0313552,106210.0,106200.0,0.87126057]
[1750415996548,0.0313552,106210.0,106200.0,0.39678113]
[1750415996769,0.0313552,106210.0,106200.0,0.468543]
[1750415996980,0.0313552,106210.0,106200.0,0.315943]
[1750415997212,0.0313552,106210.0,106200.0,0.5218569]
[1750415997426,0.0313552,106210.0,106200.0,0.69313634]
[1750415997651,0.0313552,106210.0,106200.0,0.84573634]
[1750415998293,0.0313552,106210.0,106200.0,0.5238569]
[1750416000844,0.07996988,106210.0,106200.0,0.27597798]
[1750416001176,0.08938483,106210.0,106200.0,0.25718864]
[1750416001378,0.08938483,106210.0,106200.0,0.27592153]
[1750416001580,0.62710614,106210.0,106200.0,0.23739714]
[1750416001739,0.62710614,106210.0,106200.0,0.21866443]
[1750416001944,0.70881473,106210.0,106200.0,0.21866443]
[1750416002152,0.71822995,106210.0,106200.0,0.22808009]
[1750416002422,0.45021518,106210.0,106200.0,0.23749566]
[1750416002738,0.45021518,106210.0,106200.0,0.23549566]
[1750416002935,0.64993666,106210.0,106200.0,0.22608009]
[1750416003204,0.64052198,106210.0,106200.0,0.21666443]
[1750416003377,0.63852198,106210.0,106200.0,0.21666443]
[1750416003813,0.62810703,106210.0,106200.0,0.21666443]
[1750416004012,0.63010703,106210.0,106200.0,0.21666443]
[1750416004226,0.43238555,106210.0,106200.0,0.22608]
[1750416004783,0.44180041,106210.0,106200.0,0.22608]
[1750416005195,0.43238466,106210.0,106200.0,0.22608]
[1750416005397,0.45121483,106210.0,106200.0,0.22608]
[1750416005611,0.4417997,106210.0,106200.0,0.22608]
[1750416005826,0.44179961,106210.0,106200.0,0.22608]
[1750416006039,0.45121474,106210.0,106200.0,0.22608]
[1750416006729,0.44179961,106210.0,106200.0,0.22608]
[1750416006950,0.44179952,106210.0,106200.0,0.22608]
[1750416007611,0.43238457,106210.0,106200.0,0.22608]
[1750416008292,0.44179961,106210.0,106200.0,0.22608]
[1750416009121,0.45121474,106210.0,106200.0,0.22608]
[1750416009326,0.44179961,106210.0,106200.0,0.22608]
[1750416010697,0.45121474,106210.0,106200.0,0.22608]
[1750416010918,0.43238457,106210.0,106200.0,0.22608]
[1750416011124,0.44179952,106210.0,106200.0,0.22608]
[1750416012647,0.45121456,106210.0,106200.0,0.22608]
[1750416013065,0.60385456,106210.0,106200.0,0.22608]
[1750416015092,0.79216074,106210.0,106200.0,0.21666443]
[1750416015294,0.59443952,106210.0,106200.0,0.22608]
[1750416015796,0.80157613,106210.0,106200.0,0.22608]
[1750416016022,0.60385465,106210.0,106200.0,0.22608]
[1750416016493,0.59443952,106210.0,106200.0,0.22608]
[1750416016676,0.60385465,106210.0,106200.0,0.22608]
[1750416016897,0.59443952,106210.0,106200.0,0.22608]
[1750416017118,0.60385456,106210.0,106200.0,0.22608]
[1750416017891,0.59443952,106210.0,106200.0,0.22608]
[1750416019081,0.58502457,106210.0,106200.0,0.22608]
[1750416019494,0.3837698,106210.0,106200.0,0.22608]
[1750416019698,0.58502457,106210.0,106200.0,0.22608]
[1750416020343,0.58302457,106210.0,106200.0,0.22608]
[1750416020589,0.59143943,106210.0,106200.0,0.22608]
[1750416020759,0.59243943,106210.0,106200.0,0.22608]
[1750416020976,0.59243943,106210.0,106200.0,0.22708]
[1750416021387,0.60185456,106210.0,106200.0,0.22708]
[1750416021553,0.60185447,106210.0,106200.0,0.22708]
[1750416021953,0.59243943,106210.0,106200.0,0.22708]
[1750416022202,0.60185438,106210.0,106200.0,0.22708]
[1750416024288,0.61126951,106210.0,106200.0,0.22708]
[1750416024491,0.60185438,106210.0,106200.0,0.22708]
[1750416025460,0.61126951,106210.0,106200.0,0.22708]
[1750416025943,0.60185438,106210.0,106200.0,0.22708]
[1750416026350,0.61126951,106210.0,106200.0,0.22708]
[1750416027416,0.61126951,106210.0,106200.0,0.25516784]
[1750416028345,0.61127013,106210.0,106200.0,0.25516784]
[1750416028747,0.79957631,106210.0,106200.0,0.25516784]
[1750416028959,0.61127013,106210.0,106200.0,0.25516784]
[1750416029163,0.79957631,106210.0,106200.0,0.25516784]
[1750416029843,0.79957684,106210.0,106200.0,0.24575227]
[1750416030058,0.79016198,106210.0,106200.0,0.24575227]
[1750416031707,0.79016198,106210.0,106200.0,0.25516793]
[1750416033269,0.79016198,106210.0,106200.0,0.24575227]
[1750416033270,0.78074703,106210.0,106200.0,0.24575227]
[1750416033649,0.78074703,106210.0,106200.0,0.25516793]
[1750416035776,0.78074703,106210.0,106200.0,0.24575227]
[1750416040036,0.78074703,106210.0,106200.0,0.25516793]
[1750416041969,0.78074703,106210.0,106200.0,0.24575227]
[1750416042775,0.65455535,106210.0,106200.0,0.23633652]
[1750416042987,0.79774022,106210.0,106200.0,0.2176646]
[1750416043136,0.79774022,106210.0,106200.0,0.22708044]
[1750416044019,0.60943369,106210.0,106200.0,0.2364961]
[1750416044447,0.61884828,106210.0,106200.0,0.2364961]
[1750416044849,0.61884828,106210.0,106200.0,0.23649557]
[1750416046623,0.5329152,106210.0,106200.0,0.23649557]
[1750416046838,0.54232971,106210.0,106200.0,0.23649557]
[1750416047654,0.55174431,106210.0,106200.0,0.23649557]
[1750416047799,0.56714431,106210.0,106200.0,0.23649557]
[1750416048203,0.37538431,106210.0,106200.0,0.23649557]
[1750416048571,0.56714431,106210.0,106200.0,0.23649557]
[1750416048678,0.37538431,106210.0,106200.0,0.23649557]
[1750416048890,0.56714431,106210.0,106200.0,0.23649557]
[1750416049100,0.57655899,106210.0,106200.0,0.23649557]
[1750416050740,0.38479899,106210.0,106200.0,0.23649557]
[1750416050947,0.57655899,106210.0,106200.0,0.23649557]
[1750416052794,0.39421376,106210.0,106200.0,0.23649557]
[1750416052979,0.58597376,106210.0,106200.0,0.23649557]
[1750416053410,0.57655899,106210.0,106200.0,0.23649557]
[1750416053618,0.55772971,106210.0,106200.0,0.23649557]
[1750416053831,0.5329152,106210.0,106200.0,0.23649557]
[1750416055225,0.5329152,106210.0,106200.0,0.27394603]
[1750416055435,0.54232971,106210.0,106200.0,0.27394603]
[1750416055640,0.5329152,106210.0,106200.0,0.27394603]
[1750416055851,0.5329152,106210.0,106200.0,0.23649557]
[1750416056501,0.5329152,106210.0,106200.0,0.27394603]
[1750416057015,0.0011552,106210.0,106200.0,0.30534603]
[1750416057232,0.0403152,106210.0,106200.0,0.30534603]
[1750416060955,0.0403152,106210.0,106200.0,0.55318496]
[1750416061389,0.0403152,106210.0,106200.0,0.60932326]
[1750416061647,0.0011552,106210.0,106200.0,0.60932326]
[1750416061854,0.0011552,106210.0,106200.0,0.89399586]
[1750416062268,0.0011552,106210.0,106200.0,0.5718728]
[1750416062889,0.0011552,106210.0,106200.0,0.89399586]
[1750416064090,0.0011552,106210.0,106200.0,0.5718728]
[1750416066307,0.0011552,106210.0,106200.0,0.60939018]
[1750416071076,0.0011552,106210.0,106200.0,0.93151324]
[1750416073445,0.0011552,106210.0,106200.0,0.60939018]
[1750416077950,0.0011552,106210.0,106200.0,0.93151324]
[1750416079001,0.0011552,106210.0,106200.0,0.60939018]
[1750416079215,0.0011552,106210.0,106200.0,0.93151324]
[1750416079471,0.0011552,106210.0,106200.0,0.60939018]
[1750416079686,0.0011552,106210.0,106200.0,0.93151324]
[1750416082221,0.0011552,106210.0,106200.0,0.89399586]
[1750416082873,0.0011552,106210.0,106200.0,0.5718728]
[1750416083077,0.0011552,106210.0,106200.0,0.89399586]
[1750416083286,0.0011552,106210.0,106200.0,0.89395586]
[1750416083468,0.0011552,106210.0,106200.0,0.74143586]
[1750416083694,0.0011552,106210.0,106200.0,0.70278256]
[1750416083880,0.0011552,106210.0,106200.0,0.85530256]
[1750416084077,0.0011552,106210.0,106200.0,0.93015362]
[1750416084294,0.0011552,106210.0,106200.0,0.60803056]
[1750416084536,0.0011552,106210.0,106200.0,0.93015362]
[1750416084938,0.0011072,106210.0,106200.0,0.93015362]
[1750416100375,0.0011072,106210.0,106200.0,0.60803056]
[1750416100545,0.0011072,106210.0,106200.0,0.93015362]
[1750416100789,0.0011072,106210.0,106200.0,0.43981056]
[1750416101003,0.0011072,106210.0,106200.0,0.42411056]
[1750416101218,0.0011072,106210.0,106200.0,0.57655056]
[1750416101477,0.0011072,106210.0,106200.0,0.42411056]
[1750416101696,0.0011072,106210.0,106200.0,0.57655056]
[1750416101914,0.0011072,106210.0,106200.0,0.59245056]
[1750416102209,0.0011072,106210.0,106200.0,0.44001056]
[1750416102647,0.0011072,106210.0,106200.0,0.59245056]
[1750416102850,0.0011072,106210.0,106200.0,0.44001056]
[1750416102990,0.0011072,106210.0,106200.0,0.59245056]
[1750416103571,0.0011072,106210.0,106200.0,0.42411056]
[1750416103783,0.0011072,106210.0,106200.0,0.57655056]
[1750416104163,0.0011072,106210.0,106200.0,0.44011056]
[1750416104755,0.0011072,106210.0,106200.0,0.59255056]
[1750416105254,0.0011072,106210.0,106200.0,0.57655056]
[1750416108669,0.0011072,106210.0,106200.0,0.89867362]
[1750416113044,0.0011072,106210.0,106200.0,0.57655056]
[1750416114175,0.0011072,106210.0,106200.0,0.57655056]
[1750416115147,0.0011072,106210.0,106200.0,0.42411056]
[1750416115299,0.0166072,106210.0,106200.0,0.57655056]
[1750416115504,0.0326072,106210.0,106200.0,0.32883163]
[1750416115714,0.04202171,106210.0,106200.0,0.46274194]
[1750416115936,0.0326072,106210.0,106200.0,0.50032154]
[1750416116169,0.04202171,106210.0,106200.0,0.48283654]
[1750416116349,0.0326072,106210.0,106200.0,0.48283654]
[1750416116552,0.04202188,106210.0,106200.0,0.48283654]
[1750416117172,0.0326072,106210.0,106200.0,0.48283654]
[1750416117370,0.0420218,106210.0,106200.0,0.42647517]
[1750416120244,0.0326072,106210.0,106200.0,0.27407517]
[1750416120452,0.0420218,106210.0,106200.0,0.42647517]
[1750416120703,0.0326072,106210.0,106200.0,0.42647517]
[1750416120910,0.0717272,106210.0,106200.0,0.42647517]
[1750416124586,0.0557272,106210.0,106200.0,0.42647517]
[1750416126085,0.0402272,106210.0,106200.0,0.42647517]
[1750416127100,0.0011072,106210.0,106200.0,0.42647517]
[1750416129471,0.0011072,106210.0,106200.0,0.59401547]
[1750416132072,0.0011072,106210.0,106200.0,0.61031547]
[1750416134086,0.0011072,106210.0,106200.0,0.5163745]
[1750416135551,0.0011072,106210.0,106200.0,0.57266956]
[1750416142376,0.0011072,106210.0,106200.0,0.89479262]
[1750416146009,0.0011072,106210.0,106200.0,0.57266956]
[1750416146228,0.0011072,106210.0,106200.0,0.55636956]
[1750416156265,0.0011072,106210.0,106200.0,0.5000745]
[1750416156763,0.0011072,106210.0,106200.0,0.4841745]
[1750416157121,0.0011072,106210.0,106200.0,0.54041636]
[1750416157340,0.0011072,106210.0,106200.0,0.4840945]
[1750416157760,0.0011072,106210.0,106200.0,0.3317745]
[1750416157990,0.0011072,106210.0,106200.0,0.4840945]
[1750416158401,0.0011072,106210.0,106200.0,0.3317745]
[1750416158716,0.0011072,106210.0,106200.0,0.4840945]
[1750416159354,0.0011072,106210.0,106200.0,0.54043832]
[1750416159558,0.0173072,106210.0,106200.0,0.38811832]
[1750416159799,0.0334072,106210.0,106200.0,0.27400816]
[1750416160030,0.05223666,106210.0,106200.0,0.26465011]
[1750416160262,0.0616517,106210.0,106200.0,0.26465011]
[1750416160469,0.59937301,106210.0,106200.0,0.21766434]
[1750416160669,0.5157519,106210.0,106200.0,0.22708]
[1750416160873,0.70405878,106210.0,106200.0,0.22708]
[1750416161007,0.69464392,106210.0,106200.0,0.22708]
[1750416161424,0.69464392,106210.0,106200.0,0.21766434]
[1750416161619,0.68522888,106210.0,106200.0,0.21766434]
[1750416162888,0.67581375,106210.0,106200.0,0.19883276]
[1750416163177,0.5805439,106210.0,106200.0,0.22708062]
[1750416163412,0.40165196,106210.0,106200.0,0.23649619]
[1750416165982,0.41106718,106210.0,106200.0,0.23649619]
[1750416166984,0.40165196,106210.0,106200.0,0.23649619]
[1750416167484,0.40165187,106210.0,106200.0,0.23649619]
[1750416167948,0.411067,106210.0,106200.0,0.23649619]
[1750416168527,0.42048222,106210.0,106200.0,0.23649619]
[1750416168751,0.67955569,106210.0,106200.0,0.22708062]
[1750416168985,0.67014074,106210.0,106200.0,0.22708062]
[1750416169217,0.67014074,106210.0,106200.0,0.23649637]
[1750416169444,0.67014074,106210.0,106200.0,0.23649584]
[1750416170534,0.67014074,106210.0,106200.0,0.22708018]
[1750416170942,0.67014074,106210.0,106200.0,0.21766443]
[1750416171566,0.67014074,106210.0,106200.0,0.22708018]
[1750416172161,0.6607257,106210.0,106200.0,0.20824859]
[1750416172406,0.8151257,106210.0,106200.0,0.2176646]
[1750416173143,0.58054373,106210.0,106200.0,0.22708044]
[1750416173334,0.73490373,106210.0,106200.0,0.22708044]
[1750416173562,0.73490373,106210.0,106200.0,0.2364961]
[1750416173790,0.74431903,106210.0,106200.0,0.2364961]
[1750416176264,0.74431903,106210.0,106200.0,0.22708044]
[1750416176507,0.83958888,106210.0,106200.0,0.22708044]
[1750416176760,0.83017375,106210.0,106200.0,0.22708044]
[1750416177230,0.67581375,106210.0,106200.0,0.22708044]
[1750416177440,0.83017375,106210.0,106200.0,0.22708044]
[1750416177673,0.67581375,106210.0,106200.0,0.22708044]
[1750416178071,0.83021375,106210.0,106200.0,0.22708044]
[1750416178288,0.67581375,106210.0,106200.0,0.22708044]
[1750416178500,0.83017375,106210.0,106200.0,0.2176646]
[1750416180294,0.82075853,106210.0,106200.0,0.2176646]
[1750416180887,0.81134323,106210.0,106200.0,0.20824868]
[1750416181306,0.81134323,106210.0,106200.0,0.18941657]
[1750416181496,0.81134323,106210.0,106200.0,0.20824868]
[1750416182193,0.81134323,106210.0,106200.0,0.2176646]
[1750416185147,0.81134323,106210.0,106200.0,0.22708044]
[1750416187271,0.82075845,106210.0,106200.0,0.22708044]
[1750416189175,0.82075845,106210.0,106200.0,0.2176646]
[1750416190291,0.82075845,106210.0,106200.0,0.20824868]
[1750416190458,0.82075845,106210.0,106200.0,0.2176646]
[1750416192156,0.80465845,106210.0,106200.0,0.19883258]
[1750416194495,0.81975845,106210.0,106200.0,0.19883258]
[1750416196673,0.80465845,106210.0,106200.0,0.19883258]
[1750416197952,0.82005845,106210.0,106200.0,0.19883258]
[1750416199279,0.7093886,106210.0,106200.0,0.19883258]
[1750416199485,0.7093886,106210.0,106200.0,0.20824842]
[1750416200441,0.7093886,106210.0,106200.0,0.19883258]
[1750416203291,0.7093886,106210.0,106200.0,0.2082485]
[1750416205672,0.7093886,106210.0,106200.0,0.21766434]
[1750416206123,0.80465845,106210.0,106200.0,0.21766434]
[1750416207171,0.78845845,106210.0,106200.0,0.21766434]
[1750416208414,0.80435845,106210.0,106200.0,0.21766434]
[1750416208867,0.80435845,106210.0,106200.0,0.22708009]
[1750416217069,0.8072887,106210.0,106200.0,0.22708009]
[1750416217518,0.8072887,106210.0,106200.0,0.23649575]
[1750416219540,0.8473287,106210.0,106200.0,0.23649575]
[1750416219955,0.8630287,106210.0,106200.0,0.23649575]
[1750416221868,0.8630287,106210.0,106200.0,0.22708009]
[1750416222336,0.8630287,106210.0,106200.0,0.23649575]
[1750416223471,0.8473287,106210.0,106200.0,0.23649575]
[1750416223971,0.8630287,106210.0,106200.0,0.23649575]
[1750416228817,0.8630287,106210.0,106200.0,0.22708009]
[1750416229450,0.8473287,106210.0,106200.0,0.22708009]
[1750416229672,0.6929687,106210.0,106200.0,0.23649575]
[1750416229848,0.8462487,106210.0,106200.0,0.23649575]
[1750416241988,0.65794252,106210.0,106200.0,0.23649575]
[1750416242124,0.8462487,106210.0,106200.0,0.23649531]
[1750416245265,0.65794252,106210.0,106200.0,0.23649531]
[1750416246801,0.8462487,106210.0,106200.0,0.23649531]
[1750416248614,0.8462487,106210.0,106200.0,0.22707974]
[1750416250308,0.75097885,106210.0,106200.0,0.22707974]
[1750416254191,0.75097885,106210.0,106200.0,0.24237974]
[1750416254396,0.75097885,106210.0,106200.0,0.22707974]
[1750416254837,0.56147196,106210.0,106200.0,0.26779531]
[1750416255684,0.56147196,106210.0,106200.0,0.25209531]
[1750416257955,0.40867196,106210.0,106200.0,0.25209531]
[1750416258202,0.56143196,106210.0,106200.0,0.25209531]
[1750416266504,0.55201683,106210.0,106200.0,0.26749531]
[1750416266712,0.35993683,106210.0,106200.0,0.26749531]
[1750416266895,0.56135196,106210.0,106200.0,0.26749531]
[1750416267131,0.56135196,106210.0,106200.0,0.25209531]
[1750416267349,0.55193683,106210.0,106200.0,0.25209531]
[1750416267553,0.56135187,106210.0,106200.0,0.25209531]
[1750416268352,0.55193683,106210.0,106200.0,0.25209531]
[1750416268558,0.38984197,106210.0,106200.0,0.25209531]
[1750416268769,0.55193631,106210.0,106200.0,0.26849531]
[1750416268977,0.35052171,106210.0,106200.0,0.26849531]
[1750416269184,0.38984171,106210.0,106200.0,0.26849531]
[1750416274217,0.3804272,106210.0,106200.0,0.26849531]
[1750416274864,0.38984171,106210.0,106200.0,0.26849531]
[1750416275399,0.3804272,106210.0,106200.0,0.26849531]
[1750416275744,0.3898418,106210.0,106200.0,0.26849531]
[1750416276325,0.38984171,106210.0,106200.0,0.26849531]
[1750416277221,0.3804272,106210.0,106200.0,0.26849531]
[1750416277634,0.3804272,106210.0,106200.0,0.26844731]
[1750416278053,0.3804272,106210.0,106200.0,0.42112731]
[1750416279097,0.0404272,106210.0,106200.0,0.42112731]
[1750416279343,0.0404272,106210.0,106200.0,0.79959419]
[1750416279971,0.0404272,106210.0,106200.0,0.47747113]
[1750416283098,0.0404272,106210.0,106200.0,0.42112731]
[1750416294790,0.0404272,106210.0,106200.0,0.51640624]
[1750416295390,0.0404272,106210.0,106200.0,0.8385293]
[1750416297454,0.0404272,106210.0,106200.0,0.51640624]
[1750416298119,0.0404272,106210.0,106200.0,0.8385293]
[1750416298529,0.0404272,106210.0,106200.0,0.51640624]
[1750416300409,0.0404272,106210.0,106200.0,0.8385293]
[1750416300627,0.0404272,106210.0,106200.0,0.51640624]
[1750416300845,0.0404272,106210.0,106200.0,0.8385293]
[1750416301058,0.0404272,106210.0,106200.0,0.51640624]
[1750416302130,0.0011072,106210.0,106200.0,0.51640624]
[1750416302372,0.00168754,106220.0,106210.0,0.26269188]
[1750416302610,0.0016856,106230.0,106220.0,0.60267149]
[1750416302844,0.0016856,106230.0,106220.0,1.94463334]
[1750416303302,0.0016856,106230.0,106220.0,1.47363928]
[1750416303543,0.0016856,106230.0,106220.0,1.02297207]
[1750416303772,0.0016856,106230.0,106220.0,1.57339309]
[1750416304944,0.0016856,106230.0,106220.0,1.57439309]
[1750416305162,0.0159,106250.0,106240.0,0.52920004]
[1750416305439,0.0551,106250.0,106240.0,0.68180004]
[1750416306467,0.05169751,106250.0,106240.0,0.68180004]
[1750416307182,0.01249751,106250.0,106240.0,0.68180004]
[1750416307397,0.05169751,106250.0,106240.0,0.68480004]
[1750416308802,0.01222986,106250.0,106240.0,0.68480004]
[1750416309215,0.03967304,106250.0,106240.0,0.68480004]
[1750416309624,0.00047304,106250.0,106240.0,0.68480004]
[1750416309820,0.03967304,106250.0,106240.0,0.68480004]
[1750416311238,0.05517304,106250.0,106240.0,0.21007698]
[1750416311449,0.05517304,106250.0,106240.0,0.2100775]
[1750416311450,0.07399559,106250.0,106240.0,0.2100775]
[1750416311663,0.07399559,106250.0,106240.0,0.003]
[1750416311664,5.74751025,106250.0,106240.0,0.003]
[1750416311875,5.97355025,106250.0,106240.0,0.003]
[1750416312128,5.96413884,106250.0,106240.0,0.003]
[1750416312336,6.07580869,106250.0,106240.0,0.003]
[1750416312553,6.03660869,106250.0,106240.0,0.003]
[1750416312754,6.07580869,106250.0,106240.0,0.003]
[1750416312968,6.07580869,106250.0,106240.0,0.002]
[1750416313175,6.07680869,106250.0,106240.0,0.002]
[1750416313620,0.56816548,106240.0,106230.0,0.359697]
[1750416313827,0.56816548,106240.0,106230.0,0.19768417]
[1750416314043,0.52825301,106240.0,106220.0,0.20711613]
[1750416314260,0.52825301,106240.0,106230.0,0.35028426]
[1750416314463,0.56741301,106240.0,106230.0,0.19768426]
[1750416314910,0.59821301,106240.0,106230.0,0.19768426]
[1750416315763,0.59821301,106240.0,106230.0,0.2070977]
[1750416316391,0.59921301,106240.0,106230.0,0.00941353]
[1750416316618,5.62038417,106230.0,106220.0,0.20711666]
[1750416316824,0.57038417,106230.0,106220.0,0.35030278]
[1750416317034,0.57038417,106230.0,106220.0,0.36913081]
[1750416317834,0.57038417,106230.0,106220.0,0.35971684]
[1750416318053,0.57038417,106230.0,106220.0,0.19770278]
[1750416318252,5.62038417,106230.0,106220.0,0.20711693]
[1750416319108,5.62038417,106230.0,106220.0,0.19770278]
[1750416319530,5.62138417,106230.0,106220.0,0.19770278]
[1750416319951,5.62138417,106230.0,106220.0,0.20711702]
[1750416320160,5.62338417,106230.0,106220.0,0.20711702]
[1750416320833,5.62338417,106230.0,106220.0,0.19770278]
[1750416321026,5.62338417,106230.0,106220.0,0.20711702]
[1750416321363,5.62338417,106230.0,106220.0,0.19770278]
[1750416321943,5.62338417,106230.0,106220.0,0.20711702]
[1750416323763,5.62338417,106230.0,106220.0,0.21653144]
[1750416324834,5.62338417,106230.0,106220.0,0.2071172]
[1750416327764,5.61397073,106230.0,106220.0,0.2071172]
[1750416328050,5.61397073,106230.0,106220.0,0.19770287]
[1750416329155,0.19770269,106220.0,106210.0,0.28338049]
[1750416329356,0.2964455,106220.0,106210.0,0.07624494]
[1750416329583,5.8202172,106220.0,106210.0,0.07624494]
[1750416329800,5.81080287,106220.0,106210.0,0.07624494]
[1750416329987,5.90607272,106220.0,106210.0,0.07624494]
[1750416330227,6.00135165,106220.0,106210.0,0.07624494]
[1750416330440,0.56812131,106210.0,106200.0,0.19773877]
[1750416330655,0.57753635,106210.0,106200.0,0.2165707]
[1750416330866,0.56213635,106210.0,106200.0,0.2165707]
[1750416331074,0.56213635,106210.0,106200.0,0.22598654]
[1750416331075,0.54713635,106210.0,106200.0,0.22598654]
[1750416331500,0.5565513,106210.0,106200.0,0.23540229]
[1750416331718,0.5565513,106210.0,106200.0,0.22598654]
[1750416331928,0.5565513,106210.0,106200.0,0.2260343]
[1750416332108,0.54713635,106210.0,106200.0,0.21761846]
[1750416332454,0.53772131,106210.0,106200.0,0.21761846]
[1750416332687,0.54729255,106210.0,106200.0,0.20820254]
[1750416332886,0.54729255,106210.0,106200.0,0.19878653]
[1750416333091,0.53787742,106210.0,106200.0,0.19878653]
[1750416333298,0.53787742,106210.0,106200.0,0.20078653]
[1750416333530,0.53787742,106210.0,106200.0,0.19137043]
[1750416333739,5.71310472,106210.0,106200.0,0.00304776]
[1750416333991,5.80838365,106210.0,106200.0,0.00304776]
[1750416334204,5.83459355,106210.0,106200.0,0.00304776]
[1750416334410,5.8229245,106210.0,106200.0,0.00304776]
[1750416334617,5.8229245,106210.0,106200.0,0.00104776]
[1750416335027,5.8229245,106210.0,106200.0,4.776e-05]
[1750416335228,5.8512185,106210.0,106200.0,4.776e-05]
[1750416336459,5.8532185,106210.0,106200.0,4.776e-05]
[1750416336676,5.8562185,106210.0,106200.0,4.776e-05]
[1750416338311,5.9062185,106210.0,106200.0,4.776e-05]
[1750416342944,0.20719469,106180.0,106170.0,0.0001]
[1750416343150,6.19512971,106180.0,106170.0,0.00019297]
[1750416343360,6.24512971,106180.0,106170.0,0.00019297]
[1750416343566,6.27343171,106180.0,106170.0,0.00019297]
[1750416344276,6.27543171,106180.0,106170.0,0.00019297]
[1750416344687,6.27743171,106180.0,106170.0,0.00019297]
[1750416346556,6.30601888,106180.0,106170.0,0.00019297]
[1750416351094,6.06421888,106180.0,106170.0,0.00019297]
[1750416351371,5.98153562,106180.0,106170.0,0.00019297]
[1750416351605,6.14277562,106180.0,106170.0,0.00019297]
[1750416351840,5.99013562,106180.0,106170.0,0.00019297]
[1750416352081,6.14277562,106180.0,106170.0,0.00019297]
[1750416352315,6.23804547,106180.0,106170.0,0.00019297]
[1750416352811,5.82004547,106180.0,106170.0,0.00019297]
[1750416353047,6.04628547,106180.0,106170.0,0.00019297]
[1750416353743,5.95101562,106180.0,106170.0,0.00019297]
[1750416353970,5.72477562,106180.0,106170.0,0.00019297]
[1750416354851,5.38477562,106180.0,106170.0,0.1885701]
[1750416355064,5.17753149,106180.0,106170.0,0.24942559]
[1750416355275,5.70589087,106180.0,106170.0,0.24000736]
[1750416355494,5.70589087,106180.0,106170.0,0.24942577]
[1750416356137,5.36589087,106180.0,106170.0,0.24942577]
[1750416356351,5.69647362,106180.0,106170.0,0.23058886]
[1750416356592,5.6814519,106180.0,106170.0,0.23058886]
[1750416356801,5.68686942,106180.0,106170.0,0.24000753]
[1750416357451,5.68786942,106180.0,106170.0,0.24000753]
[1750416359652,5.34786942,106180.0,106170.0,0.24000753]
[1750416359890,5.72706942,106180.0,106170.0,0.24000753]
[1750416360596,5.7176519,106180.0,106170.0,0.24000753]
[1750416361282,5.81292175,106180.0,106170.0,0.24000753]
[1750416361890,5.7176519,106180.0,106170.0,0.24000753]
[1750416362090,5.8702919,106180.0,106170.0,0.24000753]
[1750416362503,5.6784519,106180.0,106170.0,0.24000753]
[1750416362717,5.8702919,106180.0,106170.0,0.24000753]
[1750416363168,5.8702919,106180.0,106170.0,0.23058886]
[1750416363169,5.86087411,106180.0,106170.0,0.23058886]
[1750416363394,5.86087411,106180.0,106170.0,0.2211701]
[1750416363621,5.66903411,106180.0,106170.0,0.2211701]
[1750416363841,5.66903411,106180.0,106170.0,0.03279297]
[1750416364065,0.81647831,106180.0,106170.0,0.03279297]
[1750416364303,5.86087431,106180.0,106170.0,0.01639297]
[1750416364511,5.95614416,106180.0,106170.0,0.00019297]
[1750416364732,5.97174416,106180.0,106170.0,0.00019297]
[1750416364995,5.98734416,106180.0,106170.0,0.00019297]
[1750416367234,6.00188501,106180.0,106170.0,0.00019297]
[1750416367454,6.03018601,106180.0,106170.0,0.00019297]
[1750416368142,6.08679698,106180.0,106170.0,0.00019297]
[1750416369256,6.08018601,106180.0,106170.0,0.00019297]
[1750416369473,6.08679971,106180.0,106170.0,0.00019297]
[1750416370583,6.58499971,106180.0,106170.0,0.00019297]
[1750416372231,6.58500226,106180.0,106170.0,0.00019297]
[1750416373129,6.58500254,106180.0,106170.0,0.00019297]
[1750416376631,6.08680254,106180.0,106170.0,0.00019297]
[1750416377535,6.08680254,106180.0,106150.0,0.0001]
[1750416377536,0.01883886,106160.0,106150.0,0.0001]
[1750416377773,0.01883886,106160.0,106150.0,0.00019285]
[1750416377774,6.06902401,106160.0,106150.0,0.00019285]
[1750416377997,6.06902522,106160.0,106150.0,0.00019285]
[1750416378229,6.09733322,106160.0,106150.0,0.00019285]
[1750416378455,6.12556641,106160.0,106150.0,0.00019285]
[1750416378639,6.12556641,106160.0,106150.0,0.00219285]
[1750416378640,6.09733322,106160.0,106150.0,0.00219285]
[1750416379307,6.09733322,106160.0,106150.0,0.00019285]
[1750416379520,6.10133322,106160.0,106150.0,0.00019285]
[1750416379726,6.10533322,106160.0,106150.0,0.00019285]
[1750416381557,6.03251548,106160.0,106150.0,0.00019285]
[1750416381784,6.00217463,106160.0,106150.0,0.00019285]
[1750416382233,5.72321666,106160.0,106150.0,0.00019285]
[1750416382465,5.54670866,106160.0,106150.0,0.03239285]
[1750416382707,5.53728936,106160.0,106150.0,0.23022601]
[1750416383145,5.53728936,106160.0,106150.0,0.22080547]
[1750416383360,5.53728936,106160.0,106150.0,0.03239285]
[1750416383572,5.96313965,106160.0,106150.0,0.2302261]
[1750416384221,5.96313965,106160.0,106150.0,0.03239285]
[1750416385879,5.6760698,106160.0,106150.0,0.23022601]
[1750416386086,5.8678698,106160.0,106150.0,0.22080547]
[1750416386237,5.8678698,106160.0,106150.0,0.03239285]
[1750416387475,5.8638698,106160.0,106150.0,0.03239285]
[1750416387711,5.8658698,106160.0,106150.0,0.03239285]
[1750416387913,5.9347959,106160.0,106150.0,0.03239285]
[1750416388244,5.9307959,106160.0,106150.0,0.03239285]
[1750416388679,5.9327959,106160.0,106150.0,0.03239285]
[1750416392122,5.9327959,106160.0,106150.0,0.01609285]
[1750416392571,5.9327959,106160.0,106150.0,0.03169285]
[1750416397770,5.5927959,106160.0,106150.0,0.03169285]
[1750416397979,5.9327959,106160.0,106150.0,0.03169285]
[1750416404306,5.6720698,106160.0,106150.0,0.22010547]
[1750416404534,5.44639441,106160.0,106150.0,0.25778646]
[1750416404740,0.55459815,106160.0,106150.0,0.25778646]
[1750416404950,0.56401745,106160.0,106150.0,0.25778646]
[1750416405167,0.55259815,106160.0,106150.0,0.25778646]
[1750416405405,0.55059815,106160.0,106150.0,0.25778646]
[1750416405611,0.35883815,106160.0,106150.0,0.25778646]
[1750416405825,0.55059815,106160.0,106150.0,0.25778646]
[1750416406238,0.56001745,106160.0,106150.0,0.25778646]
[1750416406447,0.56943692,106160.0,106150.0,0.25778646]
[1750416406622,0.37767692,106160.0,106150.0,0.25778646]